bitfinex-derivatives/quotes_ETHF0:USTF0_20250422
["timestamp","ask_amount","ask_price","bid_price","bid_amount"]
[1745309769932,0.00922253,1628.5,1628.4,6.21599]
[1745309770134,36.31503959,1628.9,1628.8,1.22799]
[1745309770338,16.25570607,1629.3,1629.2,1.22769]
[1745309771035,16.25570607,1629.3,1629.1,1.7799]
[1745309771237,19.36426607,1629.3,1629.1,3.00767]
[1745309771635,19.36426607,1629.3,1629.2,1.7799]
[1745309772443,1.22771,1629.2,1629.0,4.44482253]
[1745309772739,3.10861,1629.2,1629.1,1.7799]
[1745309773044,1.8809,1629.2,1629.1,3.00767]
[1745309773243,3.10859,1629.2,1629.1,1.7799]
[1745309773441,1.8809,1629.2,1629.1,3.00767]
[1745309775049,3.10859,1629.2,1629.1,3.00767]
[1745309775548,1.9466,1629.3,1629.2,1.22769]
[1745309775751,1.9466,1629.3,1629.2,2.99969]
[1745309775937,3.10743842,1629.4,1629.3,1.22761]
[1745309776138,1.87984842,1629.4,1629.3,3.14231]
[1745309778142,0.00614842,1629.4,1629.3,3.14231]
[1745309778540,0.00614842,1629.4,1629.3,5.01161]
[1745309778937,3.14548842,1629.4,1629.3,1.9147]
[1745309779137,1.91794842,1629.4,1629.0,10.19632253]
[1745309779336,1.9118,1629.3,1629.2,1.22763]
[1745309780537,0.00614842,1629.4,1629.3,1.22761]
[1745309780837,1.23368842,1629.4,1629.3,1.22761]
[1745309781040,1.23368842,1629.4,1629.3,3.11801]
[1745309781240,0.00614842,1629.4,1629.3,3.11801]
[1745309781446,1.23368842,1629.4,1629.3,3.11801]
[1745309781639,3.14548842,1629.4,1629.3,3.11801]
[1745309782236,3.14548842,1629.4,1629.3,8.11801]
[1745309782237,0.00614842,1629.4,1629.3,8.11801]
[1745309782437,0.00614842,1629.4,1629.3,50.80591]
[1745309782940,0.00614842,1629.4,1629.3,45.80591]
[1745309783344,0.00614842,1629.4,1629.3,44.5783]
[1745309783648,0.00614842,1629.4,1629.3,43.91801]
[1745309784447,1.23368842,1629.4,1629.3,43.91801]
[1745309784647,3.10198842,1629.4,1629.3,43.91801]
[1745309784849,1.87444842,1629.4,1629.3,43.91801]
[1745309785245,0.00614842,1629.4,1629.3,43.91801]
[1745309787751,1.82624842,1629.4,1629.3,43.91801]
[1745309788146,3.05378842,1629.4,1629.3,42.6904]
[1745309788352,3.05378842,1629.4,1629.3,40.8]
[1745309788751,4.88618842,1629.4,1629.3,40.8]
[1745309789351,1.22761,1629.3,1629.2,1.22766]
[1745309789550,3.05991,1629.3,1629.2,1.22766]
[1745309789939,3.05991,1629.3,1629.2,42.02766]
[1745309790454,1.8323,1629.3,1629.2,42.02766]
[1745309790644,1.83854842,1629.4,1629.3,1.22761]
[1745309790938,1.83854842,1629.4,1629.3,3.03391]
[1745309791141,3.06608842,1629.4,1629.3,3.03391]
[1745309791340,1.92534842,1629.4,1629.3,3.03391]
[1745309792146,1.22761,1629.3,1629.2,40.8]
[1745309792349,1.22761,1629.3,1629.2,42.02769]
[1745309792551,1.92534842,1629.4,1629.2,42.02769]
[1745309792743,1.22761,1629.3,1629.2,42.02769]
[1745309792944,1.92534842,1629.4,1629.2,42.02769]
[1745309793145,1.22761,1629.3,1629.2,42.02769]
[1745309793452,3.15294842,1629.4,1629.2,42.02769]
[1745309793651,1.22761,1629.3,1629.2,42.02769]
[1745309793852,1.9192,1629.3,1629.2,42.02769]
[1745309794056,3.14681,1629.3,1629.2,42.02769]
[1745309794247,3.14681,1629.3,1629.2,40.8]
[1745309794853,1.22777,1629.1,1629.0,3.21702253]
[1745309795051,1.22777,1629.1,1629.0,0.00922253]
[1745309795451,3.12687,1629.1,1629.0,40.80922253]
[1745309795753,1.7986,1629.2,1629.1,1.22777]
[1745309796140,1.7986,1629.2,1629.0,45.90932253]
[1745309796141,1.7986,1629.2,1629.0,44.01702253]
[1745309796346,3.12687,1629.1,1629.0,0.00922253]
[1745309796751,6.33467,1629.1,1629.0,0.00922253]
[1745309796942,10.2149,1629.1,1628.8,3.2078]
[1745309797142,3.17556,1629.0,1628.9,1.22792]
[1745309797354,5.108,1629.1,1629.0,1.22784]
[1745309797558,1.22778,1629.1,1629.0,1.22784]
[1745309797748,1.22778,1629.1,1628.9,2.98546]
[1745309798048,6.76244,1629.2,1629.0,1.2278]
[1745309798356,5.5347,1629.2,1629.0,2.9854]
[1745309798546,1.22777,1629.1,1629.0,2.9854]
[1745309798942,1.22777,1629.1,1629.0,1.7576]
[1745309799156,3.17547,1629.1,1629.0,1.7576]
[1745309799548,1.9477,1629.1,1628.8,45.24497253]
[1745309799749,3.1756,1629.0,1628.9,1.7576]
[1745309800455,3.587,1629.2,1628.9,2.98547]
[1745309800654,1.22784,1629.0,1628.9,1.7576]
[1745309801050,1.22784,1629.0,1628.9,2.98552]
[1745309801658,1.22784,1629.0,1628.9,1.7576]
[1745309801857,1.22778,1629.1,1628.9,1.7576]
[1745309802067,1.22784,1629.0,1628.9,1.7576]
[1745309802356,1.22784,1629.0,1628.9,2.98552]
[1745309802558,1.7791,1629.1,1628.9,2.98552]
[1745309802858,1.22784,1629.0,1628.9,1.7576]
[1745309803153,5.0064,1629.2,1628.9,1.7576]
[1745309803358,5.0064,1629.2,1628.9,2.98546]
[1745309803658,1.22784,1629.0,1628.9,1.7576]
[1745309804263,3.06424,1629.0,1628.9,1.7576]
[1745309804461,3.06424,1629.0,1628.9,2.98552]
[1745309804960,11.34313,1629.2,1628.9,1.7576]
[1745309805154,9.97173,1629.2,1629.1,1.22777]
[1745309806459,8.744,1629.2,1629.1,1.22777]
[1745309806854,9.97169,1629.2,1629.1,1.22777]
[1745309807157,8.744,1629.2,1629.1,1.22777]
[1745309807363,0.00614842,1629.4,1629.3,1.22761]
[1745309807860,1.23368842,1629.4,1629.3,1.22761]
[1745309808058,1.23368842,1629.4,1629.3,3.03181]
[1745309808263,1.23368842,1629.4,1629.3,1.8042]
[1745309808960,3.00128842,1629.4,1629.3,1.8042]
[1745309809260,114.35648297,1635.1,1630.1,1.5377]
[1745309809261,18.30273352,1631.1,1630.1,1.5377]
[1745309809460,18.30273352,1631.1,1630.8,3.2078]
[1745309809662,1.22637,1631.0,1630.9,40.8]
[1745309809863,18.30273352,1631.1,1630.4,3.2078]
[1745309810055,18.30273352,1631.1,1630.2,5.0094]
[1745309810260,0.00922253,1630.9,1630.6,0.00922253]
[1745309810463,1.22679,1630.4,1630.3,40.8]
[1745309810858,5.095,1630.6,1630.3,40.8]
[1745309811462,5.095,1630.6,1630.4,4.43453]
[1745309811667,5.095,1630.6,1630.4,3.2078]
[1745309811863,1.22656,1630.7,1630.4,3.2078]
[1745309812365,6.32154,1630.8,1630.4,1.22678]
[1745309812665,1.22656,1630.7,1630.5,1.8553]
[1745309812855,1.22656,1630.7,1630.3,42.03603253]
[1745309813057,1.22656,1630.7,1630.4,1.8553]
[1745309813258,1.22678,1630.5,1630.3,40.80922253]
[1745309813454,4.43446,1630.6,1630.3,40.80922253]
[1745309813653,1.22662,1630.7,1630.3,43.89135253]
[1745309813862,1.22666,1630.6,1630.4,1.8553]
[1745309814068,1.22661,1630.7,1630.4,1.8553]
[1745309814260,2.98801,1630.7,1630.4,1.8553]
[1745309814963,1.22664,1630.6,1630.4,1.8553]
[1745309815162,1.7614,1630.6,1630.4,1.8553]
[1745309815460,5.095,1630.8,1630.4,1.8553]
[1745309815655,8.22392,1630.8,1630.5,4.43448]
[1745309815967,5.095,1630.8,1630.6,1.8729]
[1745309816173,1.22656,1630.7,1630.6,1.8729]
[1745309816460,1.9024,1630.7,1630.6,1.8729]
[1745309816663,5.095,1630.8,1630.6,3.09954]
[1745309816863,5.095,1630.8,1630.7,1.22656]
[1745309817062,5.095,1630.8,1630.7,1.8729]
[1745309817553,5.095,1630.8,1630.7,3.09946]
[1745309818867,5.095,1630.8,1630.7,1.8729]
[1745309819068,8.16819,1630.8,1630.7,1.8729]
[1745309820170,5.095,1630.8,1630.7,3.09946]
[1745309820469,4.98622253,1630.9,1630.8,1.22649]
[1745309821060,4.98622253,1630.9,1630.7,3.09944]
[1745309821260,6.21268253,1630.9,1630.7,3.09944]
[1745309821456,6.21268253,1630.9,1630.8,1.22649]
[1745309821457,3.21702253,1630.9,1630.8,1.22649]
[1745309821663,0.00922253,1630.9,1630.8,1.22649]
[1745309821862,3.49808334,1631.4,1631.3,1.22611]
[1745309821863,0.29028334,1631.4,1631.3,1.22611]
[1745309822062,1.51631334,1631.4,1631.2,1.22615]
[1745309822269,2.20268334,1631.4,1631.3,1.22611]
[1745309822661,0.29028334,1631.4,1631.3,1.22611]
[1745309822857,0.29028334,1631.4,1631.3,4.43391]
[1745309823069,0.00922253,1631.5,1631.4,1.22603]
[1745309823258,0.00922253,1631.5,1631.4,2.99763]
[1745309824164,0.00922253,1631.5,1631.2,0.00922253]
[1745309824473,1.23524253,1631.5,1631.3,3.2078]
[1745309824776,1.23524253,1631.5,1631.4,42.7216]
[1745309825264,0.00922253,1631.5,1631.4,43.94763]
[1745309825571,1.23518253,1631.5,1631.4,42.7216]
[1745309826365,0.00922253,1631.5,1631.4,43.94763]
[1745309826760,3.01416,1631.9,1631.7,1.22577]
[1745309826968,61.20695,1634.0,1631.4,48.94763]
[1745309826969,3.06169,1633.3,1632.0,3.2078]
[1745309827164,3.0619,1633.1,1632.6,3.2078]
[1745309827468,1.22529,1632.4,1632.3,3.2078]
[1745309827668,1.22543,1632.2,1632.1,45.9294]
[1745309828064,6.31443,1632.2,1632.1,42.7216]
[1745309828269,1.22551,1632.1,1632.0,0.00919371]
[1745309828472,3.08261,1632.1,1632.0,0.00919371]
[1745309828666,8.08261,1632.1,1632.0,0.00919371]
[1745309829067,8.17161,1632.1,1632.0,0.00919371]
[1745309829976,6.9461,1632.1,1632.0,0.00919371]
[1745309830164,1.8571,1632.1,1632.0,0.00919371]
[1745309830369,6.9461,1632.1,1632.0,0.00919371]
[1745309830567,5.089,1632.1,1632.0,0.00919371]
[1745309830971,6.31451,1632.1,1632.0,0.00919371]
[1745309831166,3.06228,1632.9,1632.1,3.2078]
[1745309831377,1.7989,1632.9,1632.4,3.2078]
[1745309831581,6.31402,1632.8,1632.6,3.2078]
[1745309831772,3.02386,1632.9,1632.7,1.7853]
[1745309832079,3.07044,1633.0,1632.8,3.2078]
[1745309832378,1.7989,1633.2,1632.9,1.7853]
[1745309832576,3.02362,1633.2,1633.0,3.2078]
[1745309832774,5.089,1633.3,1633.0,4.43261]
[1745309832968,5.089,1633.3,1633.2,3.2078]
[1745309832969,6.31361,1633.3,1633.2,3.2078]
[1745309833171,5.089,1633.3,1633.2,3.2078]
[1745309833474,1.22468,1633.2,1633.1,1.7853]
[1745309833674,8.11256,1633.3,1633.1,1.7853]
[1745309833867,3.22043353,1633.5,1633.1,1.7853]
[1745309834068,0.01263353,1633.5,1633.2,3.2078]
[1745309834273,3.06029,1634.0,1633.1,1.7853]
[1745309834274,3.2078,1634.2,1633.4,3.2078]
[1745309834469,1.22438,1633.6,1633.5,5.0128]
[1745309834776,1.22438,1633.6,1633.5,3.2078]
[1745309834972,1.9016,1634.0,1633.5,8.2078]
[1745309835165,3.2078,1634.4,1633.7,3.2078]
[1745309835371,3.2078,1634.4,1633.6,1.805]
[1745309835372,1.9016,1634.3,1633.9,3.2078]
[1745309835566,1.22401,1634.1,1634.0,42.605]
[1745309835772,1.22408,1634.0,1633.9,0.00919371]
[1745309835975,8.21268,1634.0,1633.9,0.00919371]
[1745309836174,1.9016,1634.0,1633.9,0.00919371]
[1745309836369,5.087,1634.3,1633.9,0.00919371]
[1745309836679,1.9016,1634.2,1634.0,3.2078]
[1745309836874,6.31091,1634.3,1634.0,3.2078]
[1745309836875,1.22388,1634.3,1634.1,1.9424]
[1745309837380,1.22401,1634.1,1634.0,3.2078]
[1745309837771,1.22408,1634.0,1633.9,0.00919371]
[1745309837974,8.2928,1634.4,1633.9,4.44114371]
[1745309838172,1.9321,1634.3,1634.0,1.9424]
[1745309838368,1.22401,1634.1,1633.9,3.21699371]
[1745309838572,1.22408,1634.0,1633.9,3.21699371]
[1745309838777,3.15618,1634.0,1633.9,0.00919371]
[1745309839381,1.22398,1634.2,1633.9,0.00919371]
[1745309839578,8.9114,1634.3,1633.9,0.00919371]
[1745309839781,1.22408,1634.0,1633.9,0.00919371]
[1745309840081,6.36008,1634.0,1633.9,0.00919371]
[1745309840471,11.36008,1634.0,1633.9,0.00919371]
[1745309840673,6.36008,1634.0,1633.9,0.00919371]
[1745309840874,1.9522,1634.1,1633.9,0.00919371]
[1745309841176,6.56451288,1635.1,1633.9,0.00919371]
[1745309841177,3.2078,1635.6,1634.5,1.5377]
[1745309841378,13.3529,1635.8,1635.0,4.43111]
[1745309841580,1.9522,1635.5,1635.2,3.2078]
[1745309841777,1.9522,1635.5,1635.2,3.21699371]
[1745309842075,3.2078,1635.6,1635.2,3.21699371]
[1745309842283,3.2078,1635.6,1635.2,4.99749371]
[1745309842284,1.22308,1635.4,1635.2,4.99749371]
[1745309842592,5.136,1635.3,1635.2,0.00919371]
[1745309842786,3.2078,1635.5,1635.2,0.00919371]
[1745309843081,1.22326,1635.1,1635.0,3.2078]
[1745309843377,1.22326,1635.1,1634.6,3.5787]
[1745309843378,5.376,1635.2,1634.7,5.15]
[1745309843585,1.8521,1635.0,1634.7,3.2078]
[1745309843786,1.22348,1634.8,1634.7,3.2078]
[1745309844077,3.05872,1634.8,1634.3,4.7455]
[1745309844278,3.05947,1634.4,1634.0,1.9422]
[1745309844481,3.05984,1634.2,1633.7,3.2078]
[1745309844682,1.22418,1633.9,1633.7,3.2078]
[1745309844876,6.60014,1634.0,1633.7,3.2078]
[1745309845069,6.60014,1634.0,1633.8,0.00919371]
[1745309845274,5.376,1634.0,1633.8,0.00919371]
[1745309845577,5.376,1634.0,1633.9,3.2078]
[1745309845780,6.60014,1634.0,1633.9,3.2078]
[1745309845976,7.2891,1634.0,1633.9,3.2078]
[1745309846375,8.51318,1634.0,1633.9,3.2078]
[1745309846570,1.23313762,1634.1,1633.9,3.2078]
[1745309846772,0.00909762,1634.1,1633.9,5.0861]
[1745309847177,1.23310762,1634.1,1633.9,5.0861]
[1745309847482,1.22416,1633.9,1633.8,0.00919371]
[1745309847882,3.13723,1634.0,1633.8,0.00919371]
[1745309848080,1.22416,1633.9,1633.8,0.00919371]
[1745309848282,3.13726,1633.9,1633.8,0.00919371]
[1745309848587,1.9131,1633.9,1633.8,0.00919371]
[1745309848879,3.13726,1633.9,1633.8,0.00919371]
[1745309849281,9.97352,1633.9,1633.6,3.2078]
[1745309849483,1.22446,1633.5,1633.3,3.2078]
[1745309849782,5.375,1633.5,1633.3,3.2078]
[1745309849984,1.22453,1633.4,1633.3,3.2078]
[1745309850183,1.22453,1633.4,1632.8,1.9513]
[1745309850184,1.9255,1633.4,1633.0,3.2078]
[1745309850489,1.22473,1633.2,1633.0,44.01699371]
[1745309850686,1.22464,1633.3,1633.1,1.8175]
[1745309850887,0.00919371,1633.3,1633.1,1.8175]
[1745309851087,5.38419371,1633.3,1633.1,1.8175]
[1745309851386,5.38419371,1633.3,1633.2,3.2078]
[1745309851779,5.38419371,1633.3,1633.2,5.0028]
[1745309851977,1.22475,1633.2,1633.0,44.01699371]
[1745309852174,1.9333,1633.2,1633.0,44.01699371]
[1745309852381,1.22476,1633.1,1633.0,44.01699371]
[1745309852576,1.22476,1633.1,1633.0,0.00919371]
[1745309852787,6.22476,1633.1,1633.0,0.00919371]
[1745309853290,8.15806,1633.1,1633.0,0.00919371]
[1745309853492,1.8051,1633.2,1633.0,0.00919371]
[1745309853493,1.22473,1633.2,1633.0,3.21699371]
[1745309853686,1.22476,1633.1,1633.0,3.21699371]
[1745309854290,3.15806,1633.1,1633.0,3.21699371]
[1745309854987,3.15806,1633.1,1633.0,0.00919371]
[1745309855191,8.15806,1633.1,1633.0,0.00919371]
[1745309855385,1.22476,1633.1,1633.0,3.21699371]
[1745309855784,3.01576,1633.1,1633.0,3.21699371]
[1745309857091,1.22476,1633.1,1633.0,0.00919371]
[1745309857292,5.376,1633.2,1633.1,1.22476]
[1745309857598,6.60068,1633.2,1633.1,1.9284]
[1745309857893,1.22476,1633.1,1633.0,3.21699371]
[1745309858084,3.07676,1633.1,1633.0,3.21699371]
[1745309858586,8.07676,1633.1,1633.0,0.00919371]
[1745309859283,1.22513,1632.6,1632.5,3.2078]
[1745309859486,1.22513,1632.6,1632.5,3.20083485]
[1745309859989,1.22521,1632.5,1632.4,1.7438]
[1745309860589,5.377,1632.7,1632.4,7.96904]
[1745309860789,6.60208,1632.7,1632.6,3.2078]
[1745309861091,1.22521,1632.5,1632.4,45.7516]
[1745309861291,1.22521,1632.5,1632.4,4.9516]
[1745309862290,1.22521,1632.5,1632.4,3.2078]
[1745309862985,1.8766,1632.6,1632.3,0.00919371]
[1745309862986,1.22528,1632.4,1632.3,0.00919371]
[1745309863191,8.47888,1632.4,1632.3,0.00919371]
[1745309863390,13.47888,1632.4,1632.3,0.00919371]
[1745309863593,8.47888,1632.4,1632.3,0.00919371]
[1745309863785,13.47888,1632.4,1632.3,0.00919371]
[1745309864484,8.47888,1632.4,1632.3,0.00919371]
[1745309864689,13.47888,1632.4,1632.3,0.00919371]
[1745309864893,8.47888,1632.4,1632.3,0.00919371]
[1745309865882,13.47888,1632.4,1632.3,3.71e-06]
[1745309867284,4.81918,1632.7,1632.3,3.71e-06]
[1745309867489,1.22528,1632.4,1632.3,1.76430371]
[1745309867888,6.60428,1632.4,1632.3,3.71e-06]
[1745309870298,6.60428,1632.4,1632.3,1.89750371]
[1745309870490,5.379,1632.4,1632.3,1.89750371]
[1745309870692,6.60428,1632.4,1632.3,1.89750371]
[1745309871397,6.60428,1632.4,1632.3,3.71e-06]
[1745309871601,6.60428,1632.4,1632.3,1.89750371]
[1745309872604,5.379,1632.4,1632.3,3.12286371]
[1745309873187,5.379,1632.4,1632.3,8.12286371]
[1745309873392,6.60428,1632.4,1632.3,1.89750371]
[1745309873595,6.60428,1632.4,1632.3,3.12286371]
[1745309873901,6.60428,1632.4,1632.3,1.89750371]
[1745309874993,1.22528,1632.4,1632.3,1.89750371]
[1745309875195,1.22521,1632.5,1632.4,1.22524]
[1745309875394,1.22521,1632.5,1632.4,6.36144]
[1745309875602,1.22521,1632.5,1632.4,5.1362]
[1745309876003,6.69715,1632.6,1632.4,6.36145]
[1745309876198,5.472,1632.6,1632.5,1.22521]
[1745309876503,1.22509,1632.7,1632.5,4.79551]
[1745309876698,1.22509,1632.7,1632.6,3.2078]
[1745309878203,1.22506,1632.7,1632.6,3.2078]
[1745309879607,1.22513,1632.6,1632.5,1.7624]
[1745309879794,6.69613,1632.6,1632.5,1.7624]
[1745309880292,6.69613,1632.6,1632.4,3.2078]
[1745309880293,1.22528,1632.4,1632.3,3.71e-06]
[1745309880900,8.13548,1632.4,1632.3,3.71e-06]
[1745309881313,10.06988,1632.4,1632.3,3.71e-06]
[1745309881911,5.06988,1632.4,1632.3,3.71e-06]
[1745309882204,10.06988,1632.4,1632.3,3.71e-06]
[1745309882509,17.02717551,1632.4,1632.3,3.71e-06]
[1745309882813,5.06988,1632.4,1632.3,3.71e-06]
[1745309883200,10.06988,1632.4,1632.3,3.71e-06]
[1745309884308,20.04821677,1632.4,1632.3,3.71e-06]
[1745309884509,1.22588,1631.6,1631.5,1.8813]
[1745309884710,1.22611,1631.3,1631.2,3.2078]
[1745309884912,1.2261,1631.4,1631.2,3.2078]
[1745309885111,1.22611,1631.3,1631.2,3.2078]
[1745309885310,8.53674,1631.6,1631.2,3.2078]
[1745309885311,6.322,1631.4,1631.2,3.2078]
[1745309885514,7.55724371,1631.4,1631.2,3.2078]
[1745309885710,6.33119371,1631.4,1631.2,3.2078]
[1745309886014,1.22611,1631.3,1631.2,3.2078]
[1745309886711,6.69811,1631.3,1631.2,3.2078]
[1745309887114,13.02011,1631.3,1631.2,3.2078]
[1745309887313,11.794,1631.3,1631.2,4.9898]
[1745309887505,13.02011,1631.3,1631.2,4.9898]
[1745309888115,11.794,1631.3,1631.2,4.9898]
[1745309888317,13.02011,1631.3,1631.2,9.9898]
[1745309888518,13.02011,1631.3,1631.2,4.9898]
[1745309888717,11.794,1631.3,1631.2,6.21598]
[1745309888918,6.322,1631.3,1631.2,7.97078]
[1745309889222,7.54811,1631.3,1631.2,7.97078]
[1745309889527,6.322,1631.3,1631.2,12.97078]
[1745309889727,0.00919371,1631.4,1631.3,1.22611]
[1745309890118,0.00919371,1631.4,1631.3,6.22611]
[1745309890822,0.00919371,1631.4,1631.2,6.7446]
[1745309890823,1.23528371,1631.4,1631.2,7.97075]
[1745309891027,1.22611,1631.3,1631.2,6.7446]
[1745309891926,1.22611,1631.3,1631.2,4.9898]
[1745309892122,1.22611,1631.3,1631.2,9.9898]
[1745309892624,1.22611,1631.3,1631.2,11.8455]
[1745309892816,1.22611,1631.3,1631.2,6.8455]
[1745309893015,1.22611,1631.3,1631.2,4.9898]
[1745309893229,2.99371,1631.3,1631.2,4.9898]
[1745309894019,2.99371,1631.3,1631.2,3.2078]
[1745309894230,1.22618,1631.2,1631.1,0.00919371]
[1745309894431,8.51138,1631.2,1631.1,0.00919371]
[1745309895226,1.22641,1630.9,1630.8,3.2078]
[1745309895527,6.70041,1630.9,1630.8,3.2078]
[1745309895735,1.22649,1630.8,1630.7,1.7423]
[1745309895923,1.22664,1630.6,1630.5,3.2078]
[1745309896123,1.22664,1630.6,1630.5,44.0078]
[1745309896322,1.22664,1630.6,1630.5,3.2078]
[1745309897031,1.22671,1630.5,1630.4,0.00919371]
[1745309897219,2.98471,1630.5,1630.4,0.00919371]
[1745309897418,2.98471,1630.5,1630.4,1.77569371]
[1745309897923,1.22671,1630.5,1630.4,1.77569371]
[1745309898131,7.54871,1630.5,1630.4,1.77569371]
[1745309898526,8.08,1630.5,1630.1,3.2078]
[1745309898733,1.2269,1630.3,1630.1,4.9743]
[1745309898924,6.322,1630.5,1630.3,1.22684]
[1745309899125,6.322,1630.5,1630.0,1.8761]
[1745309899126,9.38888,1630.5,1630.0,1.8761]
[1745309899432,2.98484,1630.4,1630.2,1.7665]
[1745309899619,1.22686,1630.3,1630.2,1.7665]
[1745309899824,1.22697,1630.2,1630.1,0.00622525]
[1745309900027,1.22697,1630.2,1630.1,1.77272525]
[1745309900230,7.54897,1630.2,1630.1,1.77272525]
[1745309900431,6.322,1630.2,1630.1,2.99973525]
[1745309900633,6.322,1630.2,1630.1,11.20753525]
[1745309901031,6.322,1630.2,1630.1,47.00753525]
[1745309901330,1.22679,1630.4,1630.2,1.22689]
[1745309901532,1.22679,1630.4,1630.3,1.8363]
[1745309902135,1.22679,1630.4,1630.1,45.24099525]
[1745309902136,1.77909371,1630.5,1630.1,45.24099525]
[1745309902338,1.22694,1630.2,1630.1,47.07729525]
[1745309902636,11.798,1630.4,1630.2,1.22694]
[1745309902835,11.798,1630.4,1630.3,3.06316]
[1745309903338,13.02479,1630.4,1630.3,3.06316]
[1745309903834,11.798,1630.4,1630.3,3.06316]
[1745309904038,13.02479,1630.4,1630.3,1.8363]
[1745309904534,11.798,1630.4,1630.1,44.01402525]
[1745309904838,1.22686,1630.3,1630.2,3.05189]
[1745309905025,13.02485,1630.4,1630.2,3.05188]
[1745309905229,13.02485,1630.4,1630.2,1.825]
[1745309905435,11.798,1630.4,1630.3,1.22686]
[1745309905932,13.02479,1630.4,1630.3,1.22686]
[1745309906130,11.798,1630.4,1630.3,4.43466]
[1745309906329,6.322,1630.4,1630.3,9.43466]
[1745309906530,6.322,1630.4,1630.3,11.29406]
[1745309907136,0.00919371,1630.5,1630.4,1.22679]
[1745309907329,0.00919371,1630.5,1630.4,3.14489]
[1745309909737,1.23590371,1630.5,1630.4,3.14489]
[1745309909929,0.00919371,1630.5,1630.4,3.14489]
[1745309910134,6.33119371,1630.5,1630.4,3.14489]
[1745309911243,0.00919371,1630.5,1630.4,3.14489]
[1745309912545,1.23590371,1630.5,1630.4,3.14489]
[1745309912747,1.23590371,1630.5,1630.4,1.9181]
[1745309913244,6.33119371,1630.5,1630.1,40.80622525]
[1745309913432,1.22689,1630.3,1630.2,2.94653]
[1745309913638,1.22689,1630.3,1630.2,1.7196]
[1745309913934,1.22694,1630.2,1630.1,0.00622525]
[1745309914136,12.58664,1630.2,1630.1,0.00622525]
[1745309914342,17.58664,1630.2,1630.1,0.00622525]
[1745309915738,16.3597,1630.2,1630.1,0.00622525]
[1745309915937,12.58664,1630.2,1630.1,0.00622525]
[1745309916144,16.3597,1630.2,1629.8,1.22722]
[1745309916446,1.22701,1630.1,1629.8,1.22722]
[1745309916638,8.44679,1630.0,1629.8,3.09612]
[1745309916835,7.2197,1630.0,1629.8,1.8689]
[1745309917041,7.2197,1630.0,1629.9,1.22716]
[1745309917340,14.76879,1630.0,1629.8,3.09608]
[1745309917537,6.322,1630.0,1629.9,3.09606]
[1745309918046,6.322,1630.0,1629.9,11.30386]
[1745309918239,5.435,1630.3,1630.2,1.22694]
[1745309918440,5.435,1630.3,1630.1,1.22695]
[1745309918642,7.1839,1630.3,1630.0,3.04513]
[1745309918845,1.22694,1630.2,1630.1,1.8611]
[1745309919039,1.7489,1630.2,1630.1,3.08811]
[1745309919242,6.322,1630.2,1630.1,3.08811]
[1745309920238,6.322,1630.2,1630.1,6.29591]
[1745309920646,7.54894,1630.2,1630.1,6.29591]
[1745309921447,6.322,1630.2,1630.1,6.29591]
[1745309921945,0.00919371,1630.5,1630.1,6.29591]
[1745309922148,1.22679,1630.4,1630.3,3.2078]
[1745309923140,6.322,1630.4,1630.3,3.2078]
[1745309923340,7.54879,1630.4,1630.3,3.2078]
[1745309923542,7.54879,1630.4,1630.3,4.43466]
[1745309923742,6.322,1630.4,1630.3,4.43466]
[1745309925138,0.00919371,1630.5,1630.3,3.2078]
[1745309925339,1.22679,1630.4,1630.3,3.2078]
[1745309925547,1.22694,1630.2,1630.1,1.22695]
[1745309925738,1.22691,1630.3,1630.2,1.22692]
[1745309926153,2.99744,1630.4,1630.3,1.22686]
[1745309926340,2.99744,1630.4,1630.3,4.43466]
[1745309926943,2.99744,1630.4,1630.3,1.22686]
[1745309927247,9.31944,1630.4,1630.3,1.22686]
[1745309927647,8.0926,1630.4,1630.1,3.2078]
[1745309927848,1.7547,1630.3,1630.2,1.22691]
[1745309928147,2.98156,1630.3,1630.2,1.22691]
[1745309928545,1.22694,1630.2,1630.1,4.43479]
[1745309928747,1.7547,1630.2,1630.1,4.43479]
[1745309928951,1.22701,1630.1,1630.0,3.04516]
[1745309929147,1.22701,1630.1,1630.0,1.22706]
[1745309929340,1.22709,1630.0,1629.9,4.43491]
[1745309929544,2.98176,1630.1,1630.0,1.22709]
[1745309929944,1.7547,1630.1,1630.0,1.22709]
[1745309930145,6.322,1630.2,1630.1,1.22701]
[1745309930844,8.1212,1630.2,1630.1,1.22701]
[1745309931043,6.322,1630.2,1630.1,1.22701]
[1745309931250,6.66188,1630.3,1630.2,1.22694]
[1745309931647,7.2342,1630.3,1630.2,1.22694]
[1745309931849,8.46106,1630.3,1630.2,1.22694]
[1745309932153,14.78306,1630.3,1630.2,1.22694]
[1745309933256,14.78306,1630.3,1630.2,2.96604]
[1745309933549,6.322,1630.3,1630.2,2.96604]
[1745309933849,6.322,1630.3,1630.2,7.96604]
[1745309934045,6.322,1630.3,1630.2,2.96604]
[1745309934646,7.54886,1630.3,1630.2,2.96604]
[1745309934854,9.32376,1630.3,1630.2,1.7391]
[1745309935148,1.22694,1630.2,1630.1,3.2078]
[1745309935356,3.00184,1630.2,1630.1,3.2078]
[1745309935549,3.00184,1630.2,1630.1,1.22701]
[1745309935750,3.00188,1630.2,1630.0,2.93795]
[1745309935949,3.623,1630.2,1630.1,1.22701]
[1745309936153,9.945,1630.2,1630.1,1.22701]
[1745309936356,11.17197,1630.2,1630.0,1.7109]
[1745309936544,9.945,1630.2,1630.0,1.7109]
[1745309936749,9.945,1630.2,1630.1,1.22701]
[1745309936952,9.945,1630.2,1630.1,4.43481]
[1745309937653,6.322,1630.2,1630.1,4.43481]
[1745309938254,3.10079,1630.4,1630.3,1.22686]
[1745309938947,3.10079,1630.4,1630.2,1.7338]